bitfinex-derivatives/quotes_BNBF0:USTF0_20250112
["timestamp","ask_amount","ask_price","bid_price","bid_amount"]
[1736687936812,1.07849032,692.98,691.67,1.29642876]
[1736687938013,1.79663018,693.06,691.66,3.00936725]
[1736687938014,1.07849032,692.99,691.66,1.29642876]
[1736687939117,1.07849032,692.95,691.65,0.28916359]
[1736687940116,1.07849032,692.93,691.65,0.28916359]
[1736687940819,1.07849032,692.94,691.65,0.28916359]
[1736687942819,1.07849032,692.94,691.65,2.06635906]
[1736687943222,1.07849032,692.93,691.67,1.29642876]
[1736687944417,1.07849032,692.92,691.67,1.29642876]
[1736687945220,1.07849032,692.95,691.66,3.00936725]
[1736687945624,1.07849032,692.95,691.65,0.28916359]
[1736687946921,1.07849032,692.98,691.65,0.28916359]
[1736687948021,1.07849032,692.97,691.65,0.28916359]
[1736687949121,1.07849032,692.98,691.65,0.28916359]
[1736687951224,1.07849032,692.97,691.65,0.28916359]
[1736687952026,1.07849032,692.99,691.65,0.28916359]
[1736687954023,1.07849032,692.96,691.65,0.28916359]
[1736687954927,1.07849032,692.93,691.65,0.28916359]
[1736687955922,1.07849032,692.94,691.65,0.28916359]
[1736687956626,1.79663018,693.06,691.65,0.28916359]
[1736687956627,1.07849032,692.93,691.65,0.28916359]
[1736687958326,1.07849032,692.93,691.65,2.06767574]
[1736687958929,1.07849032,692.93,691.65,2.97752176]
[1736687959329,1.07849032,692.9,691.71,1.29642876]
[1736687960527,1.07849032,692.9,691.72,1.29642876]
[1736687961526,1.07849032,692.91,691.7,1.29642876]
[1736687962025,1.07849032,692.91,691.7,3.98478693]
[1736687962229,1.07849032,692.91,691.71,0.90984602]
[1736687962831,1.07849032,692.89,691.74,1.29642876]
[1736687963629,1.07849032,692.88,691.75,1.58555055]
[1736687963824,1.07849032,692.88,691.76,0.28911761]
[1736687964532,1.07849032,692.92,691.8,1.29642876]
[1736687965229,1.07849032,692.92,691.79,0.90984602]
[1736687966633,1.07849032,692.92,691.79,3.91921327]
[1736687966833,1.07849032,692.92,691.8,2.68835817]
[1736687967334,1.07849032,692.91,691.8,2.68835817]
[1736687968131,1.07849032,692.91,691.81,3.00936725]
[1736687968336,1.07849032,692.91,691.82,1.77851215]
[1736687969139,1.07849032,692.94,691.82,2.68822007]
[1736687969339,1.07849032,692.94,691.82,1.77851215]
[1736687970136,1.07849032,692.94,691.81,1.77851215]
[1736687970434,1.07849032,692.95,691.81,1.77851215]
[1736687971040,1.07849032,692.94,691.81,1.77851215]
[1736687971840,1.07849032,692.94,691.77,2.68825964]
[1736687972441,1.07849032,692.95,691.79,1.29642876]
[1736687973341,1.07849032,692.93,691.78,3.00936725]
[1736687973540,1.07849032,692.93,691.79,1.77851215]
[1736687974441,1.07849032,692.94,691.79,1.77851215]
[1736687975444,1.07849032,692.95,691.79,3.07494091]
[1736687976244,1.07849032,692.91,691.79,1.77851215]
[1736687976444,1.07849032,692.91,691.8,3.00936725]
[1736687976643,1.07849032,692.91,691.81,1.77851215]
[1736687977349,1.07849032,692.92,691.81,1.77851215]
[1736687978045,1.07849032,692.92,691.76,0.28911761]
[1736687978349,1.07849032,692.94,691.76,0.28911761]
[1736687980948,1.07849032,692.92,691.76,0.28911761]
[1736687981141,1.07849032,692.92,691.76,3.29848486]
[1736687981345,1.07849032,692.92,691.77,2.68797165]
[1736687982249,1.07849032,692.93,691.77,2.68797165]
[1736687983049,1.07849032,692.93,691.78,3.00936725]
[1736687983249,1.07849032,692.93,691.79,2.68797165]
[1736687983452,1.07849032,692.92,691.79,2.68797165]
[1736687984245,1.07849032,692.94,691.79,2.68797165]
[1736687984649,1.07849032,692.94,691.8,3.00936725]
[1736687984849,1.07849032,692.94,691.81,1.77851215]
[1736687985245,1.07849032,692.96,691.81,1.77851215]
[1736687986049,1.07849032,692.97,691.81,3.07494091]
[1736687986454,1.07849032,692.97,691.82,3.00936725]
[1736687986656,1.07849032,692.97,691.83,1.77851215]
[1736687987055,1.07849032,692.96,691.83,1.77851215]
[1736687988051,1.07849032,692.96,691.82,1.77851215]
[1736687988255,1.07849032,692.94,691.82,1.77851215]
[1736687989151,1.79643959,693.06,691.81,3.00936725]
[1736687989152,1.07849032,692.92,691.81,3.00936725]
[1736687989758,1.07849032,692.98,691.76,0.28911761]
[1736687990858,1.07849032,692.96,691.76,0.28911761]
[1736687992355,1.07849032,692.98,691.76,0.28911761]
[1736687993759,1.07849032,692.96,691.76,0.28911761]
[1736687994466,1.07849032,692.99,691.76,0.28911761]
[1736687994662,0.28860861,692.98,691.76,0.28911761]
[1736687995566,1.07849032,692.97,691.76,0.28911761]
[1736687996266,0.28860861,692.98,691.76,0.28911761]
[1736687999266,1.36709893,692.98,691.76,0.28911761]
[1736688000068,1.07849032,692.97,691.76,0.28911761]
[1736688001269,0.28860861,692.98,691.76,0.28911761]
[1736688011380,0.28860861,692.98,691.76,2.97722994]
[1736688011982,0.28860861,692.98,691.77,3.01072474]
[1736688012177,0.28860861,692.98,691.78,2.68811233]
[1736688013182,0.28860861,692.98,691.79,0.28910507]
[1736688013580,0.28860861,692.98,691.79,3.29982981]
[1736688013778,0.28860861,692.98,691.8,2.68811233]
[1736688015187,0.28860861,692.98,691.81,3.01072474]
[1736688015387,0.28860861,692.98,691.82,2.68811233]
[1736688016584,0.28860861,692.98,691.83,3.29981309]
[1736688016785,0.28860861,692.98,691.84,2.68811233]
[1736688016982,0.28860861,692.98,691.85,0.28908]
[1736688017880,0.28860861,692.98,691.85,3.29980474]
[1736688018089,0.28860861,692.98,691.86,2.68811233]
[1736688018386,0.28860861,692.98,691.86,1.77944984]
[1736688018788,0.28860861,692.98,691.85,3.29980474]
[1736688018984,0.28860861,692.98,691.85,0.28908]
[1736688019491,1.50728195,693.42,691.85,0.28908]
[1736688021089,1.07849032,693.62,691.85,0.28908]
[1736688021284,1.50737988,693.46,691.85,0.28908]
[1736688021691,0.28834647,693.61,691.85,0.28908]
[1736688021887,1.50734723,693.46,691.85,0.28908]
[1736688022088,0.28834647,693.61,691.85,0.28908]
[1736688022492,1.50746694,693.46,691.85,0.28908]
[1736688022791,0.28834647,693.61,691.85,0.28908]
[1736688022986,1.50740165,693.46,691.85,0.28908]
[1736688023183,0.28834647,693.61,691.85,0.28908]
[1736688023389,1.50740165,693.46,691.85,0.28908]
[1736688023791,0.28834647,693.61,691.85,0.28908]
[1736688023991,1.50741797,693.46,691.85,0.28908]
[1736688024294,0.28834647,693.61,691.85,0.28908]
[1736688024591,1.5074615,693.45,691.85,0.28908]
[1736688024795,0.28834647,693.61,691.85,0.28908]
[1736688024988,1.50748871,693.44,691.85,0.28908]
[1736688025186,0.28842132,693.43,691.85,0.28908]
[1736688025587,1.79591003,693.43,691.85,0.28908]
[1736688029092,0.28842132,693.43,691.85,0.28908]
[1736688038001,1.07849032,693.92,691.85,0.28908]
[1736688038296,0.55335169,693.91,691.85,0.28908]
[1736688038496,0.55335584,693.9,691.85,0.28908]
[1736688038699,0.28823012,693.89,691.85,0.28908]
[1736688041203,0.26513218,693.88,691.85,0.28908]
[1736688041398,0.28823843,693.87,691.85,0.28908]
[1736688041605,0.26513218,693.86,691.85,0.28908]
[1736688041805,0.28824673,693.85,691.85,0.28908]
[1736688046501,0.26513571,693.84,691.85,0.28908]
[1736688046703,0.28825504,693.83,691.85,0.28908]
[1736688053318,0.26511678,693.82,691.85,0.28908]
[1736688056514,0.28826335,693.81,691.85,0.28908]
[1736688056718,0.26511678,693.8,691.85,0.28908]
[1736688056919,0.28827166,693.79,691.85,0.28908]
[1736688057116,0.26511678,693.78,691.85,0.28908]
[1736688059217,0.28827997,693.77,691.85,0.28908]
[1736688059417,0.26511678,693.76,691.85,0.28908]
[1736688059618,0.28828828,693.75,691.85,0.28908]
[1736688062320,0.26511959,693.74,691.85,0.28908]
[1736688062618,0.2651205,693.73,691.85,0.28908]
[1736688062819,0.2651205,693.72,691.85,0.28908]
[1736688063015,0.2651205,693.71,691.85,0.28908]
[1736688063218,0.28828828,693.75,691.85,0.28908]
[1736688063219,0.2651205,693.7,691.93,1.28431726]
[1736688063419,0.2651205,693.69,691.95,0.28903822]
[1736688063620,0.2651205,693.68,691.95,0.28903822]
[1736688063821,0.2651205,693.67,691.95,0.28903822]
[1736688064021,0.28828828,693.75,691.95,0.28903822]
[1736688064222,0.2651196,693.74,692.05,1.28431726]
[1736688064825,0.2651196,693.74,692.07,0.2889881]
[1736688065323,1.07475712,693.73,692.13,1.28431726]
[1736688065518,0.2651196,693.72,692.15,0.2889547]
[1736688066024,0.26510895,693.71,692.15,1.57327196]
[1736688066224,0.26510895,693.7,692.15,1.57327196]
[1736688066427,0.26510895,693.69,692.15,1.57327196]
[1736688066623,0.26510895,693.68,692.15,1.57327196]
[1736688066820,1.3630454,693.75,692.15,1.57327196]
[1736688067019,0.26510506,693.74,692.15,1.57327196]
[1736688067326,1.07475712,693.7,692.15,1.57327196]
[1736688067626,0.26510506,693.69,692.15,1.57327196]
[1736688067821,1.07475712,693.7,692.15,1.57327196]
[1736688068025,1.07475712,693.69,692.19,1.28431726]
[1736688069129,0.28828828,693.75,692.15,0.2889547]
[1736688077939,0.28828828,693.75,692.16,1.28431726]
[1736688079035,0.28828828,693.75,692.41,1.28431726]
[1736688080136,0.28828828,693.75,692.33,1.28431726]
[1736688080436,0.28828828,693.75,692.33,3.0455168]
[1736688080639,0.28828828,693.75,692.34,1.76119954]
[1736688081440,0.28828828,693.75,692.36,1.28431726]
[1736688082236,0.28828828,693.75,692.35,2.97635837]
[1736688083440,0.28828828,693.75,692.3,1.28431726]
[1736688084036,0.28828828,693.75,692.32,0.28888375]
[1736688102155,0.28828828,693.75,692.41,1.28431726]
[1736688102748,0.28828828,693.75,692.42,0.28884203]
[1736688103153,0.28828828,693.75,692.46,1.28431726]
[1736688103456,0.28828828,693.75,692.47,0.28882117]
[1736688104058,1.07475712,693.74,692.47,0.28882117]
[1736688105056,1.07475712,693.72,692.47,0.28882117]
[1736688105951,1.07475712,693.7,692.48,1.28431726]
[1736688106155,1.07475712,693.7,692.49,0.28881283]
[1736688107056,1.07475712,693.72,692.49,0.28881283]
[1736688108258,1.07475712,693.69,692.51,1.28431726]
[1736688109257,1.07475712,693.69,692.51,3.05091162]
[1736688109555,0.28828828,693.75,692.51,3.05091162]
[1736688109556,1.07475712,693.67,692.51,1.76659436]
[1736688110160,1.07475712,693.67,692.5,2.97635837]
[1736688110363,1.07475712,693.68,692.5,2.97635837]
[1736688110962,1.07475712,693.68,692.49,0.28881283]
[1736688111467,1.07475712,693.7,692.49,0.28881283]
[1736688112262,1.3630454,693.75,692.49,0.28881283]
[1736688113761,1.07475712,693.74,692.49,0.28881283]
[1736688114865,0.28828828,693.75,692.49,0.28881283]
[1736688119868,1.07475712,693.73,692.49,0.28881283]
[1736688122471,1.07475712,693.7,692.49,0.28881283]
[1736688122971,0.26513939,693.69,692.49,0.28881283]
[1736688123271,1.07475712,693.58,692.49,0.28881283]
[1736688124674,1.07475712,693.6,692.49,0.28881283]
[1736688125269,1.07475712,693.63,692.49,0.28881283]
[1736688125574,0.26514873,693.62,692.49,0.28881283]
[1736688126175,1.07475712,693.59,692.49,0.28881283]
[1736688127378,1.07475712,693.61,692.49,0.28881283]
[1736688128179,1.07475712,693.65,692.49,0.28881283]
[1736688128377,0.26513858,693.64,692.49,0.28881283]
[1736688128777,1.07475712,693.65,692.49,0.28881283]
[1736688128978,1.07475712,693.67,692.49,0.28881283]
[1736688130072,0.28828828,693.75,692.49,0.28881283]
[1736688140487,1.5065696,693.74,692.49,0.28881283]
[1736688140686,0.2651186,693.73,692.49,0.28881283]
[1736688141384,1.07475712,693.67,692.49,0.28881283]
[1736688142692,1.07475712,693.66,692.49,0.28881283]
[1736688144485,1.07475712,693.65,692.49,0.28881283]
[1736688145287,0.26513828,693.64,692.49,0.28881283]
[1736688145491,1.07475712,693.62,692.49,0.28881283]
[1736688145689,0.2651515,693.61,692.49,0.28881283]
[1736688146095,0.26515419,693.6,692.49,0.28881283]
[1736688146391,1.07475712,693.55,692.49,0.28881283]
[1736688147093,1.07475712,693.54,692.49,0.28881283]
[1736688147995,1.07475712,693.56,692.49,0.28881283]
[1736688148694,1.07475712,693.59,692.49,0.28881283]
[1736688149095,0.26515265,693.58,692.49,0.28881283]
[1736688149897,1.07475712,693.58,692.49,0.28881283]
[1736688150497,1.07475712,693.59,692.49,0.28881283]
[1736688150692,0.26516883,693.58,692.49,0.28881283]
[1736688150891,1.07475712,693.59,692.49,0.28881283]
[1736688151593,1.07475712,693.58,692.49,0.28881283]
[1736688152298,1.07475712,693.6,692.49,0.28881283]
[1736688154302,1.07475712,693.65,692.49,0.28881283]
[1736688155395,1.07475712,693.67,692.49,0.28881283]
[1736688156601,1.07475712,693.64,692.49,0.28881283]
[1736688157701,1.07475712,693.67,692.49,0.28881283]
[1736688159905,0.26512737,693.66,692.49,0.28881283]
[1736688160700,1.07475712,693.67,692.49,0.28881283]
[1736688160905,1.07475712,693.63,692.49,0.28881283]
[1736688161606,1.07475712,693.64,692.49,0.28881283]
[1736688162507,1.07475712,693.62,692.49,0.28881283]
[1736688162806,0.28834647,693.61,692.49,0.28881283]
[1736688167204,0.28834647,693.61,690.96,1.28431726]
[1736688167400,0.28834647,693.61,691.09,0.2893979]
[1736688167906,1.50740165,693.6,691.09,0.2893979]
[1736688168102,0.28835479,693.59,691.09,0.2893979]
[1736688168703,0.28835479,693.59,691.1,1.28431726]
[1736688168900,0.28835479,693.59,691.22,0.28934347]
[1736688171802,0.28835479,693.59,691.35,1.28431726]
[1736688172007,0.28835479,693.59,691.46,0.28924305]
[1736688173309,0.28835479,693.59,691.75,1.28431726]
[1736688173604,0.28835479,693.59,691.77,0.28911343]
[1736688174808,0.26520279,693.58,691.77,0.28911343]
[1736688175003,1.33995991,693.58,691.81,1.28431726]
[1736688175204,0.26520279,693.57,691.83,0.28908835]
[1736688175609,0.28836726,693.56,691.83,0.28908835]
[1736688175811,0.26520279,693.55,691.83,0.28908835]
[1736688176211,1.07475712,693.48,691.91,1.28431726]
[1736688176411,0.26522659,693.47,691.91,1.28431726]
[1736688176612,0.26522659,693.47,691.92,0.28905075]
[1736688177211,0.28840884,693.46,691.92,0.28905075]
[1736688177515,1.07475712,693.43,691.93,1.28431726]
[1736688177713,0.26522659,693.42,691.94,0.2890424]
[1736688177913,0.28842964,693.41,691.94,0.2890424]
[1736688178108,0.26522659,693.4,691.94,0.2890424]
[1736688178311,0.28842964,693.41,691.94,0.2890424]
[1736688179015,0.28842964,693.41,691.94,2.96391037]
[1736688179415,0.28842964,693.41,691.96,1.28431726]
[1736688179609,0.28842964,693.41,691.97,0.28902987]
[1736688179814,0.28842964,693.41,691.97,2.96389784]
[1736688180710,0.28842964,693.41,691.98,2.67486797]
[1736688180910,0.28842964,693.41,691.99,2.67486797]
[1736688181113,0.28842964,693.41,692.0,0.28901734]
[1736688182509,0.28842964,693.41,692.0,3.28437188]
[1736688182815,0.28842964,693.41,692.01,2.67486797]
[1736688183216,0.28842964,693.41,692.02,0.28900898]
[1736688184215,0.28842964,693.41,692.02,3.28436352]
[1736688184413,0.28842964,693.41,692.03,2.67486797]
[1736688184616,0.28842964,693.41,692.04,0.28900063]
[1736688185914,0.28842964,693.41,692.04,3.28435517]
[1736688186117,0.28842964,693.41,692.05,2.67486797]
[1736688186420,0.28842964,693.41,692.06,0.28899228]
[1736688187119,0.28842964,693.41,692.06,3.28434682]
[1736688187315,0.28842964,693.41,692.07,2.67486797]
[1736688187518,0.28842964,693.41,692.08,0.28898393]
[1736688188519,0.28842964,693.41,692.08,2.05914823]
[1736688188820,0.28842964,693.41,692.08,0.28898393]
[1736688191422,0.28842964,693.41,692.08,1.57330119]
[1736688191722,0.28842964,693.41,692.08,7.24182684]
[1736688191916,0.28842964,693.41,692.09,2.67317111]
[1736688192119,0.28842964,693.41,692.1,0.28897558]
[1736688192720,0.28842964,693.41,692.1,2.96214669]
[1736688193116,0.28842964,693.41,692.11,2.99535454]
[1736688193323,0.28842964,693.41,692.12,2.96213834]
[1736688193523,0.28842964,693.41,692.13,0.28896305]
[1736688194621,0.28842964,693.41,692.13,3.28431759]
[1736688194823,0.28842964,693.41,692.14,2.67343512]
[1736688195219,0.28842964,693.41,692.15,0.2889547]
[1736688196523,0.28842964,693.41,692.15,1.57327196]
[1736688196718,0.28842964,693.41,692.15,7.24206162]
[1736688196922,0.28842964,693.41,692.16,2.67343512]
[1736688197123,0.28842964,693.41,692.17,0.28894635]
[1736688198124,0.28842964,693.41,692.17,3.28430089]
[1736688198325,0.28842964,693.41,692.18,2.67343512]
[1736688198525,0.28842964,693.41,692.19,0.288938]
[1736688200228,0.28842964,693.41,692.19,3.28429254]
[1736688200427,0.28842964,693.41,692.2,1.7701643]
[1736688200627,0.28842964,693.41,692.21,0.28892966]
[1736688202324,0.28842964,693.41,692.21,2.96305962]
[1736688202525,0.28842964,693.41,692.22,2.67412996]
[1736688202726,0.28842964,693.41,692.23,2.96305127]
[1736688202922,0.28842964,693.41,692.24,2.67412996]
[1736688203128,0.28842964,693.41,692.25,1.7701643]
[1736688203328,0.28842964,693.41,692.23,0.28892131]
[1736688205830,0.28842964,693.41,692.23,2.96327327]
[1736688206530,0.28842964,693.41,692.24,2.99535454]
[1736688206730,0.28842964,693.41,692.25,2.05907726]
[1736688207030,0.28842964,693.41,692.26,0.28890879]
[1736688228249,1.07475712,693.67,692.26,0.28890879]
[1736688228642,1.50661308,693.75,692.26,0.28890879]
[1736688228643,1.07475712,693.66,692.26,0.28890879]
[1736688229543,1.07475712,693.68,692.26,0.28890879]
[1736688230544,1.07475712,693.69,692.26,0.28890879]
[1736688231447,1.07475712,693.65,692.27,1.28431726]
[1736688231643,1.07475712,693.65,692.28,0.28890044]
[1736688232648,1.07475712,693.63,692.28,0.28890044]
[1736688234349,1.07475712,693.63,692.28,3.28425498]
[1736688234550,1.07475712,693.63,692.29,2.6720337]
[1736688235250,1.07475712,693.63,692.3,0.28889209]
[1736688235950,1.07475712,693.63,692.3,3.28424663]
[1736688236148,1.07475712,693.63,692.31,1.76884148]
[1736688236345,1.07475712,693.63,692.31,2.67211113]
[1736688236550,1.07475712,693.63,692.32,0.28888375]
[1736688237447,1.07475712,693.72,692.32,0.28888375]
[1736688237851,0.28830491,693.71,692.32,0.28888375]
[1736688238453,1.07475712,693.67,692.32,0.28888375]
[1736688238654,0.28832569,693.66,692.32,0.28888375]
[1736688239549,1.36308281,693.66,692.32,0.28888375]
[1736688241154,1.50685228,693.65,692.32,0.28888375]
[1736688241655,0.288334,693.64,692.32,0.28888375]
[1736688243256,0.26516756,693.63,692.32,0.28888375]
[1736688243556,1.07475712,693.59,692.32,0.28888375]
[1736688244464,1.07475712,693.55,692.32,0.28888375]
[1736688245354,1.07475712,693.52,692.32,0.28888375]
[1736688246562,0.288334,693.64,692.32,0.28888375]
[1736688271768,1.50623269,693.96,692.12,1.7662543]
[1736688271963,1.50623269,693.96,691.97,2.66852759]
[1736688273270,1.50623269,693.96,691.98,2.99297277]
[1736688273469,1.50623269,693.96,691.99,2.66852759]
[1736688275170,1.50623269,693.96,692.0,2.99297277]
[1736688275370,1.50623269,693.96,692.01,2.66852759]
[1736688276271,1.50623269,693.96,692.02,2.99297277]
[1736688276470,1.50623269,693.96,692.03,2.66852759]
[1736688278172,1.50623269,693.96,692.04,4.27729003]
[1736688278371,1.50623269,693.96,692.05,2.66852759]
[1736688278965,1.50623269,693.96,692.18,1.28431726]
[1736688279567,0.26504529,693.95,692.18,1.28431726]
[1736688279969,0.26504529,693.95,692.23,1.28431726]
[1736688280269,0.26505181,693.94,692.23,1.28431726]
[1736688280469,0.26505181,693.93,692.23,1.28431726]
[1736688280670,0.26505181,693.92,692.23,1.28431726]
[1736688280874,0.26505181,693.91,692.23,1.28431726]
[1736688281074,0.26505181,693.9,692.42,1.28431726]
[1736688281778,1.07475712,693.88,692.43,1.28431726]
[1736688282379,1.07475712,693.9,692.34,2.99297277]
[1736688282573,0.2650678,693.89,692.34,2.99297277]
[1736688282877,1.07475712,693.9,692.34,2.99297277]
[1736688283374,1.07475712,693.91,692.34,2.99297277]
[1736688283778,1.07475712,693.91,692.23,1.28431726]
[1736688284573,1.07475712,693.85,692.2,1.28431726]
[1736688285577,1.07475712,693.85,692.21,1.28431726]
[1736688286675,1.07475712,693.84,692.16,1.28431726]
[1736688287080,1.07475712,693.84,692.16,4.27729003]
[1736688287281,1.07475712,693.84,692.17,1.76519202]
[1736688287981,1.07475712,693.83,692.17,1.76519202]
[1736688288780,1.07475712,693.83,692.17,4.75816479]
[1736688288983,1.07475712,693.82,692.18,1.76519202]
[1736688289381,1.07475712,693.82,692.18,2.67002369]
[1736688289582,1.07475712,693.82,692.18,1.76519202]
[1736688289977,1.07475712,693.78,692.24,1.28431726]
[1736688291082,1.07475712,693.75,692.29,1.28431726]
[1736688292083,1.07475712,693.78,692.34,1.28431726]
[1736688292884,1.50631418,693.86,692.26,2.67013313]
[1736688292885,1.07475712,693.76,692.35,1.28431726]
[1736688293586,1.50631418,693.86,692.43,1.28431726]
[1736688293587,1.07475712,693.72,692.43,1.28431726]
[1736688294786,1.07475712,693.72,692.42,1.28431726]
[1736688295587,1.07475712,693.73,692.42,1.28431726]
[1736688296588,1.50631418,693.86,692.39,0.90513262]
[1736688296589,1.07475712,693.71,692.45,1.28431726]
[1736688297583,1.07475712,693.72,692.45,1.28431726]
[1736688298489,1.07475712,693.71,692.44,1.28431726]
[1736688299791,1.07475712,693.69,692.42,1.76519202]
[1736688300290,1.07475712,693.69,692.42,4.75816479]
[1736688300488,1.07475712,693.69,692.43,1.76519202]
[1736688300691,1.07475712,693.68,692.43,1.76519202]
[1736688301795,1.07475712,693.66,692.43,1.76519202]
[1736688302291,1.07475712,693.66,692.44,0.28883368]
[1736688302694,1.07475712,693.67,692.44,0.28883368]
[1736688304493,1.07475712,693.7,692.44,0.28883368]
[1736688305497,1.50631418,693.86,692.44,0.28883368]
[1736688305498,1.07475712,693.69,692.44,0.28883368]
[1736688307200,1.07475712,693.71,692.44,0.28883368]
[1736688308100,1.07475712,693.69,692.44,0.28883368]
[1736688310003,1.07475712,693.68,692.44,0.28883368]
[1736688312104,1.07475712,693.69,692.44,0.28883368]
[1736688313106,1.07475712,693.67,692.44,0.28883368]
[1736688314306,1.07475712,693.66,692.44,0.28883368]
[1736688315105,1.07475712,693.62,692.44,0.28883368]
[1736688316210,1.07475712,693.61,692.44,0.28883368]
[1736688317212,1.07475712,693.6,692.44,0.28883368]
[1736688319515,1.07475712,693.59,692.44,0.28883368]
[1736688320613,1.07475712,693.6,692.44,0.28883368]
[1736688322715,1.07475712,693.59,692.44,0.28883368]
[1736688324715,1.07475712,693.6,692.44,0.28883368]
[1736688326215,1.07475712,693.61,692.44,0.28883368]
[1736688327411,1.07475712,693.58,692.44,0.28883368]
[1736688328416,1.07475712,693.59,692.44,0.28883368]
[1736688329410,1.07475712,693.63,692.44,0.28883368]
[1736688330211,1.07475712,693.64,692.44,0.28883368]
[1736688331120,1.07475712,693.62,692.44,0.28883368]
[1736688331918,1.07475712,693.63,692.44,0.28883368]
[1736688332719,1.07475712,693.65,692.44,0.28883368]
[1736688334819,1.07475712,693.64,692.44,0.28883368]
[1736688335419,1.07475712,693.65,692.44,0.28883368]
[1736688336918,1.07475712,693.64,692.44,0.28883368]
[1736688338018,1.07475712,693.67,692.44,0.28883368]
[1736688338917,1.07475712,693.66,692.44,0.28883368]
[1736688342421,1.07475712,693.65,692.44,0.28883368]
[1736688343523,1.50642829,693.76,692.44,0.28883368]
[1736688343524,1.07475712,693.63,692.44,0.28883368]
[1736688344721,1.07475712,693.64,692.44,0.28883368]
[1736688345727,1.07475712,693.63,692.44,0.28883368]
[1736688346428,1.07475712,693.64,692.44,0.28883368]
[1736688348433,1.07475712,693.57,692.44,0.28883368]
[1736688349230,1.07475712,693.6,692.44,0.28883368]
[1736688350329,1.07475712,693.59,692.44,0.28883368]
[1736688351230,1.07475712,693.57,692.44,0.28883368]
[1736688352238,1.07475712,693.6,692.44,0.28883368]
[1736688356344,1.07475712,693.59,692.44,0.28883368]
[1736688357345,1.50642829,693.76,692.44,0.28883368]
[1736688357346,1.07475712,693.57,692.44,0.28883368]
[1736688358546,1.07475712,693.68,692.44,0.28883368]
[1736688359647,1.07475712,693.65,692.44,0.28883368]
[1736688360548,1.07475712,693.64,692.44,0.28883368]
[1736688361242,1.07475712,693.65,692.44,0.28883368]
[1736688362444,1.07475712,693.62,692.44,0.28883368]
[1736688364946,1.07475712,693.61,692.44,0.28883368]
[1736688367853,1.07475712,693.65,692.44,0.28883368]
[1736688369052,1.07475712,693.52,692.44,0.28883368]
[1736688369852,1.50642829,693.76,692.44,0.28883368]
[1736688369853,1.07475712,693.61,692.44,0.28883368]
[1736688370349,1.07475712,693.6,692.44,0.28883368]
[1736688371653,1.07475712,693.61,692.44,0.28883368]
[1736688372752,1.07475712,693.68,692.44,0.28883368]
[1736688375952,1.50642829,693.76,692.44,0.28883368]
[1736688375953,1.07475712,693.65,692.44,0.28883368]
[1736688377754,1.07475712,693.72,692.44,0.28883368]
[1736688378962,1.50642829,693.76,692.44,0.28883368]
[1736688378963,1.07475712,693.73,692.44,0.28883368]
[1736688379963,1.07475712,693.67,692.44,0.28883368]
[1736688380664,1.07475712,693.65,692.44,0.28883368]
[1736688381559,1.07475712,693.68,692.44,0.28883368]
[1736688381958,0.28832153,693.67,692.44,0.28883368]
[1736688387766,1.07475712,693.6,692.44,0.28883368]
[1736688388567,1.07475712,693.54,692.44,0.28883368]
[1736688389370,1.07475712,693.55,692.44,0.28883368]
[1736688390070,1.07475712,693.5,692.44,0.28883368]
[1736688391072,1.07475712,693.49,692.44,0.28883368]
[1736688392572,1.07475712,693.48,692.44,0.28883368]
[1736688395968,1.07475712,693.47,692.44,0.28883368]
[1736688397067,1.07475712,693.46,692.44,0.28883368]
[1736688397972,0.28832153,693.67,692.44,0.28883368]
[1736688397973,1.07475712,693.55,692.44,0.28883368]
[1736688399069,1.07475712,693.66,692.44,0.28883368]
[1736688400869,1.07475712,693.65,692.44,0.28883368]
[1736688401576,1.07475712,693.66,692.44,0.28883368]
[1736688402675,0.28832153,693.67,692.44,0.28883368]
[1736688403677,1.36307865,693.67,692.44,0.28883368]
[1736688404580,0.28832153,693.67,692.44,0.28883368]
[1736688405374,1.07475712,693.66,692.44,0.28883368]
[1736688406478,1.36307865,693.67,692.44,0.28883368]
[1736688407582,1.07475712,693.65,692.44,0.28883368]
[1736688408681,1.07475712,693.61,692.44,0.28883368]
[1736688409585,1.07475712,693.62,692.44,0.28883368]
[1736688410784,1.07475712,693.59,692.44,0.28883368]
[1736688411686,1.07475712,693.6,692.44,0.28883368]
[1736688412588,1.07475712,693.58,692.44,0.28883368]
[1736688414490,1.07475712,693.57,692.44,0.28883368]
[1736688415490,1.07475712,693.56,692.44,0.28883368]
[1736688416392,1.07475712,693.55,692.44,0.28883368]
[1736688419096,0.28832153,693.67,692.44,0.28883368]
[1736688419097,1.07475712,693.57,692.44,0.28883368]
[1736688420003,1.07475712,693.59,692.44,0.28883368]
[1736688420799,1.07475712,693.61,692.44,0.28883368]
[1736688423000,1.07475712,693.62,692.44,0.28883368]
[1736688424895,1.07475712,693.61,692.44,0.28883368]
[1736688425603,1.07475712,693.57,692.44,0.28883368]
[1736688426399,1.07475712,693.58,692.44,0.28883368]
[1736688427405,1.07475712,693.59,692.44,0.28883368]
[1736688428312,1.07475712,693.57,692.44,0.28883368]
[1736688431108,1.07475712,693.55,692.44,0.28883368]
[1736688433310,1.07475712,693.59,692.44,0.28883368]
[1736688434414,1.07475712,693.65,692.44,0.28883368]
[1736688435308,0.28832153,693.67,692.44,0.28883368]